[Event "Galicia-ch U18 2021"]
[Site "Padron"]
[Date "2021.04.03"]
[Round "5.5"]
[White "Sanroman Costas, Mauro"]
[Black "Diaz Gomez, Mateo"]
[Result "1-0"]
[ECO "B34"]
[WhiteElo "1784"]
[BlackElo "1776"]
[Annotator "NA RC"]
[PlyCount "65"]
[EventDate "2021.04.02"]
[EventType "swiss"]
[EventCountry "ESP"]
[SourceTitle "playchess.com"]
[Source "ChessBase"]
[SourceQuality "1"]
[TimeControl "5400+30"]

1. e4 {[%emt 0:00:00]} c5 {[%emt 0:00:00]} 2. Nf3 {[%emt 0:00:00]} Nc6 {[%emt 0:00:00]} 3. d4 {[%emt 0:00:00]} cxd4 {[%emt 0:00:00]} 4. Nxd4 {[%emt 0:00:00]} Nf6 {[%emt 0:00:00]} 5. Nc3 {[%emt 0:00:00]} e5 {[%emt 0:00:00]} 6. Ndb5 {[%emt 0:00:00]} d6 {[%emt 0:00:01]} 7. Nd5 {[%emt 0:00:00]} Nxd5 {[%emt 0:00:38]} 8. exd5 {[%emt 0:00:00]} Ne7 {[%emt 0:00:43]} 9. c3 {[%emt 0:00:17]} Nf5 {[%emt 0:05:05]} 10. Qa4 {[%emt 0:05:23]} Bd7 {[%emt 0:04:54]} 11. Qb4 {[%emt 0:01:55]} a6 {[%emt 0:02:35]} 12. Na3 {[%emt 0:02:00]} b5 {[%emt 0:05:37]} 13. Nc2 {[%emt 0:01:44]} Be7 {[%emt 0:04:12]} 14. Bd3 {[%emt 0:03:59]} Nh4 {[%emt 0:05:35]} 15. Ne3 {[%emt 0:05:58]} f5 {[%emt 0:02:40]} 16. f4 {[%emt 0:06:08]} a5 {[%emt 0:09:07]} 17. Qb3 {[%emt 0:08:53]} exf4 {[%emt 0:00:39]} 18. Nd1 {[%emt 0:00:29]} Nxg2+ {[%emt 0:08:50]} 19. Kf2 {[%emt 0:08:40]} Ne3 {[%emt 0:02:26]} 20. Nxe3 {[%emt 0:08:53]} fxe3+ {[%emt 0:00:09]} 21. Bxe3 {[%emt 0:01:15]} f4 {[%emt 0:06:51]} 22. Bd4 {[%emt 0:03:33]} Bh4+ {[%emt 0:04:48]} 23. Ke2 {[%emt 0:06:41]} f3+ {[%emt 0:06:45]} 24. Kd1 {[%emt 0:03:03]} O-O {[%emt 0:02:19]} 25. Qc2 {[%emt 0:07:35]} h6 {[%emt 0:07:21]} 26. Bh7+ {[%emt 0:08:31]} Kh8 {[%emt 0:00:01]} 27. Bxg7+ {[%emt 0:00:19]} Kxg7 {[%emt 0:00:02]} 28. Qg6+ {[%emt 0:00:02]} Kh8 {[%emt 0:00:12]} 29. Bg8 {[%emt 0:00:13]} Bf5 {[%emt 0:02:49]} 30. Qxh6+ {[%emt 0:00:27]} Kxg8 {[%emt 0:00:06]} 31. Rg1+ {[%emt 0:00:10]} Kf7 {[%emt 0:00:18]} 32. Rg7+ {[%emt 0:00:12]} Ke8 {[%emt 0:00:11]} 33. Qh5+ 1-0

[Event "Galicia-ch U18 2021"]
[Site "Padron"]
[Date "2021.04.03"]
[Round "5.6"]
[White "Rey Chimera, Luca"]
[Black "Vazquez Porta, Andres"]
[Result "1/2-1/2"]
[ECO "B01"]
[WhiteElo "1639"]
[BlackElo "1580"]
[Annotator "NA RC"]
[PlyCount "56"]
[EventDate "2021.04.02"]
[EventType "swiss"]
[EventCountry "ESP"]
[SourceTitle "playchess.com"]
[Source "ChessBase"]
[SourceQuality "1"]
[TimeControl "5400+30"]

1. e4 {[%emt 0:00:00]} d5 {[%emt 0:00:00]} 2. exd5 {[%emt 0:00:00]} Nf6 {[%emt 0:00:00]} 3. Bb5+ {[%emt 0:00:12]} Bd7 {[%emt 0:01:10]} 4. Bc4 {[%emt 0:00:09]} c6 {[%emt 0:04:26]} 5. dxc6 {[%emt 0:02:16]} Nxc6 {[%emt 0:00:06]} 6. Nf3 {[%emt 0:00:45]} Qc7 {[%emt 0:01:30]} 7. d3 {[%emt 0:04:39]} e6 {[%emt 0:03:40]} 8. Nc3 {[%emt 0:02:32]} a6 {[%emt 0:02:20]} 9. h3 {[%emt 0:15:30]} Bd6 {[%emt 0:01:11]} 10. Be3 {[%emt 0:01:01]} b5 {[%emt 0:08:35]} 11. Bb3 {[%emt 0:00:28]} Rc8 {[%emt 0:05:50]} 12. O-O {[%emt 0:01:49]} Ne5 {[%emt 0:16:07]} 13. d4 {[%emt 0:03:34]} Nxf3+ {[%emt 0:04:13]} 14. Qxf3 {[%emt 0:00:09]} Bc6 {[%emt 0:09:19]} 15. d5 {[%emt 0:00:30]} Bb7 {[%emt 0:00:16]} 16. Bg5 {[%emt 0:08:34]} Be5 17. Qe2 {[%emt 0:03:30]} Bxc3 {[%emt 0:16:01]} 18. bxc3 {[%emt 0:01:27]} Nxd5 {[%emt 0:01:00]} 19. c4 {[%emt 0:06:02]} bxc4 {[%emt 0:08:41]} 20. Ba4+ {[%emt 0:00:10]} Kf8 {[%emt 0:01:28]} 21. Qf3 {[%emt 0:04:31]} Nb6 {[%emt 0:05:38]} 22. Qa3+ {[%emt 0:00:31]} Qc5 {[%emt 0:00:22]} 23. Qxc5+ {[%emt 0:00:48]} Rxc5 {[%emt 0:00:01]} 24. Rab1 {[%emt 0:01:18]} Rxg5 {[%emt 0:00:56]} 25. Rxb6 {[%emt 0:00:06]} Rxg2+ {[%emt 0:00:03]} 26. Kh1 {[%emt 0:00:09]} Bf3 {[%emt 0:04:33]} 27. Rb8+ {[%emt 0:00:57]} Ke7 {[%emt 0:00:04]} 28. Rxh8 {[%emt 0:00:10]} Rg3+ {[%emt 0:01:59]} 1/2-1/2

[Event "Galicia-ch U18 2021"]
[Site "Padron"]
[Date "2021.04.03"]
[Round "6.1"]
[White "Perez Dapoza, Cesar"]
[Black "Rodriguez Ferreiros, Andres"]
[Result "1/2-1/2"]
[ECO "A06"]
[WhiteElo "1885"]
[BlackElo "2123"]
[Annotator "ChessBase"]
[PlyCount "87"]
[EventDate "2021.04.02"]
[EventType "swiss"]
[EventCountry "ESP"]
[SourceTitle "playchess.com"]
[Source "ChessBase"]
[SourceQuality "1"]
[TimeControl "5400+30"]

1. Nf3 {[%emt 0:00:00]} d5 {[%emt 0:00:34]} 2. g3 {[%emt 0:00:39]} Nf6 {[%emt 0:01:28]} 3. Bg2 {[%emt 0:01:07]} c5 {[%emt 0:01:57]} 4. b3 {[%emt 0:00:44]} Nc6 {[%emt 0:01:11]} 5. Bb2 {[%emt 0:01:24]} e6 {[%emt 0:03:29]} 6. O-O {[%emt 0:02:05]} Be7 {[%emt 0:00:11]} 7. d4 {[%emt 0:02:40]} b6 {[%emt 0:02:54]} 8. dxc5 {[%emt 0:05:51]} bxc5 {[%emt 0:00:24]} 9. c4 {[%emt 0:01:20]} O-O {[%emt 0:01:18]} 10. Ne5 {[%emt 0:03:20]} Bb7 {[%emt 0:04:17]} 11. Nd2 {[%emt 0:03:46]} Qb6 {[%emt 0:06:21]} 12. cxd5 {[%emt 0:07:04]} exd5 {[%emt 0:01:01]} 13. Qb1 {[%emt 0:01:51]} Rfd8 {[%emt 0:12:54]} 14. e4 {[%emt 0:12:18]} Nxe5 {[%emt 0:05:00]} 15. Bxe5 {[%emt 0:00:26]} Qe6 {[%emt 0:09:15]} 16. Bc7 {[%emt 0:15:04]} Rd7 {[%emt 0:05:31]} 17. exd5 {[%emt 0:05:05]} Bxd5 {[%emt 0:03:45]} 18. Re1 {[%emt 0:08:13]} Qc6 {[%emt 0:04:30]} 19. Bxd5 {[%emt 0:00:31]} Nxd5 {[%emt 0:06:26]} 20. Be5 {[%emt 0:00:05]} Nb4 {[%emt 0:02:14]} 21. Bc3 {[%emt 0:04:35]} Rad8 {[%emt 0:02:28]} 22. Nc4 {[%emt 0:01:41]} Nd3 {[%emt 0:03:10]} 23. Ne5 {[%emt 0:02:10]} Nxe5 {[%emt 0:01:02]} 24. Bxe5 {[%emt 0:00:20]} Bf6 {[%emt 0:00:39]} 25. Bxf6 {[%emt 0:01:35]} Qxf6 {[%emt 0:00:18]} 26. Qe4 {[%emt 0:00:04]} g6 {[%emt 0:01:27]} 27. Qe5 {[%emt 0:01:25]} Qxe5 {[%emt 0:02:28]} 28. Rxe5 {[%emt 0:00:04]} Rd2 {[%emt 0:01:50]} 29. Rxc5 {[%emt 0:02:58]} Re2 {[%emt 0:01:31]} 30. Rc3 {[%emt 0:00:18]} Rdd2 {[%emt 0:00:13]} 31. Rf3 {[%emt 0:00:07]} Rxa2 {[%emt 0:00:35]} 32. Rc1 {[%emt 0:00:25]} Re7 {[%emt 0:01:28]} 33. Rcc3 {[%emt 0:03:16]} Rb7 {[%emt 0:01:34]} 34. Rcd3 {[%emt 0:01:32]} Kg7 {[%emt 0:00:38]} 35. Kg2 {[%emt 0:00:36]} Rb2 {[%emt 0:01:26]} 36. Rc3 {[%emt 0:01:03]} h5 {[%emt 0:00:56]} 37. h4 {[%emt 0:00:27]} Rd2 {[%emt 0:01:38]} 38. Rce3 {[%emt 0:02:43]} Kf8 {[%emt 0:00:58]} 39. Rf4 {[%emt 0:01:33]} Rc7 {[%emt 0:02:28]} 40. Re6 {[%emt 0:01:56]} Kg7 {[%emt 0:01:14]} 41. Ra6 {[%emt 0:00:33]} Rb2 {[%emt 0:00:24]} 42. b4 {[%emt 0:00:53]} Rb7 {[%emt 0:00:35]} 43. Kf3 {[%emt 0:00:29]} Rb3+ {[%emt 0:00:54]} 44. Kg2 {[%emt 0:00:28]} 1/2-1/2

[Event "Galicia-ch U18 2021"]
[Site "Padron"]
[Date "2021.04.03"]
[Round "6.2"]
[White "Gonzalez Taboada, Lorenzo"]
[Black "Buitron Ramil, David"]
[Result "1/2-1/2"]
[ECO "A48"]
[WhiteElo "1609"]
[BlackElo "1934"]
[Annotator "NA"]
[PlyCount "78"]
[EventDate "2021.04.02"]
[EventType "swiss"]
[EventCountry "ESP"]
[SourceTitle "playchess.com"]
[Source "ChessBase"]
[SourceQuality "1"]
[TimeControl "5400+30"]

1. d4 {[%emt 0:00:00]} Nf6 {[%emt 0:03:28]} 2. Nf3 {[%emt 0:00:00]} g6 {[%emt 0:00:15]} 3. e3 {[%emt 0:00:55]} Bg7 {[%emt 0:00:07]} 4. b3 {[%emt 0:00:29]} O-O {[%emt 0:00:30]} 5. Bb2 {[%emt 0:00:08]} d6 {[%emt 0:00:18]} 6. Bd3 {[%emt 0:01:00]} Nfd7 {[%emt 0:00:55]} 7. O-O {[%emt 0:02:59]} e5 {[%emt 0:00:48]} 8. dxe5 {[%emt 0:01:18]} dxe5 {[%emt 0:00:04]} 9. e4 {[%emt 0:01:28]} c6 {[%emt 0:01:12]} 10. Qe2 {[%emt 0:01:41]} Qc7 {[%emt 0:00:34]} 11. Nbd2 {[%emt 0:02:12]} h6 {[%emt 0:04:06]} 12. a4 {[%emt 0:04:27]} Nc5 {[%emt 0:04:45]} 13. Bc4 {[%emt 0:07:31]} Ne6 {[%emt 0:04:34]} 14. Bxe6 {[%emt 0:01:37]} Bxe6 {[%emt 0:00:03]} 15. Nc4 {[%emt 0:01:10]} Nd7 {[%emt 0:01:00]} 16. Ba3 {[%emt 0:00:27]} Rfd8 {[%emt 0:00:58]} 17. Rad1 {[%emt 0:00:56]} Nb6 {[%emt 0:02:43]} 18. Nxb6 {[%emt 0:01:37]} Qxb6 {[%emt 0:01:10]} 19. Rxd8+ {[%emt 0:02:00]} Rxd8 {[%emt 0:00:02]} 20. Rd1 {[%emt 0:00:19]} f5 {[%emt 0:04:17]} 21. Rxd8+ {[%emt 0:03:12]} Qxd8 {[%emt 0:00:02]} 22. Qd2 {[%emt 0:00:16]} Qxd2 {[%emt 0:03:35]} 23. Nxd2 {[%emt 0:00:02]} fxe4 {[%emt 0:00:13]} 24. Nxe4 {[%emt 0:00:17]} Bf5 {[%emt 0:00:01]} 25. f3 {[%emt 0:00:28]} Bf8 {[%emt 0:03:53]} 26. Bb2 {[%emt 0:01:24]} Bg7 {[%emt 0:00:22]} 27. Ba3 {[%emt 0:00:14]} Kf7 {[%emt 0:03:44]} 28. Kf2 {[%emt 0:00:36]} Ke6 {[%emt 0:00:43]} 29. Ke3 {[%emt 0:00:31]} b6 {[%emt 0:00:29]} 30. g4 {[%emt 0:03:18]} Bxe4 {[%emt 0:00:25]} 31. Kxe4 {[%emt 0:00:27]} Bf6 {[%emt 0:00:19]} 32. Bb2 {[%emt 0:00:19]} b5 {[%emt 0:00:31]} 33. axb5 {[%emt 0:05:32]} cxb5 {[%emt 0:01:44]} 34. Bc3 {[%emt 0:00:46]} a6 {[%emt 0:02:14]} 35. h3 {[%emt 0:00:30]} g5 {[%emt 0:01:01]} 36. Bb4 {[%emt 0:02:33]} Bd8 {[%emt 0:02:23]} 37. Bc3 {[%emt 0:03:00]} Bc7 {[%emt 0:02:52]} 38. b4 {[%emt 0:00:43]} Bd6 {[%emt 0:00:08]} 39. Bd2 {[%emt 0:00:13]} Be7 {[%emt 0:01:33]} 1/2-1/2

[Event "Galicia-ch U18 2021"]
[Site "Padron"]
[Date "2021.04.03"]
[Round "6.3"]
[White "Sanroman Costas, Mauro"]
[Black "Ferreno Sanmartin, Angel"]
[Result "0-1"]
[ECO "B93"]
[WhiteElo "1784"]
[BlackElo "2152"]
[Annotator "ChessBase"]
[PlyCount "97"]
[EventDate "2021.04.02"]
[EventType "swiss"]
[EventCountry "ESP"]
[SourceTitle "playchess.com"]
[Source "ChessBase"]
[SourceQuality "1"]
[TimeControl "5400+30"]

1. e4 {[%emt 0:00:00]} c5 {[%emt 0:00:00]} 2. Nf3 {[%emt 0:00:00]} d6 {[%emt 0:00:00]} 3. d4 {[%emt 0:00:00]} cxd4 {[%emt 0:00:00]} 4. Nxd4 {[%emt 0:00:00]} Nf6 {[%emt 0:00:00]} 5. Nc3 {[%emt 0:00:03]} a6 {[%emt 0:00:03]} 6. f4 {[%emt 0:00:10]} e5 {[%emt 0:00:28]} 7. Nf3 {[%emt 0:00:08]} Nbd7 {[%emt 0:00:09]} 8. Bd3 {[%emt 0:00:18]} b5 {[%emt 0:00:58]} 9. a3 {[%emt 0:00:03]} Be7 {[%emt 0:00:27]} 10. O-O {[%emt 0:00:02]} O-O {[%emt 0:00:20]} 11. Kh1 {[%emt 0:00:31]} Bb7 {[%emt 0:03:10]} 12. h3 {[%emt 0:01:34]} Nh5 {[%emt 0:04:07]} 13. Kh2 {[%emt 0:02:39]} Nxf4 {[%emt 0:00:26]} 14. Bxf4 {[%emt 0:00:50]} exf4 {[%emt 0:00:07]} 15. Nd4 {[%emt 0:01:11]} Bf6 {[%emt 0:01:51]} 16. Nf5 {[%emt 0:02:19]} Be5 {[%emt 0:01:11]} 17. Qe1 {[%emt 0:05:51]} Qg5 {[%emt 0:02:24]} 18. Qh4 {[%emt 0:05:07]} Qxh4 {[%emt 0:00:56]} 19. Nxh4 {[%emt 0:00:12]} Rac8 {[%emt 0:01:44]} 20. a4 {[%emt 0:06:04]} Bxc3 {[%emt 0:02:54]} 21. bxc3 {[%emt 0:00:47]} bxa4 {[%emt 0:01:21]} 22. c4 {[%emt 0:01:11]} Nc5 {[%emt 0:01:37]} 23. Nf5 {[%emt 0:00:29]} Rcd8 {[%emt 0:00:56]} 24. Ne7+ {[%emt 0:01:34]} Kh8 {[%emt 0:00:11]} 25. Nd5 {[%emt 0:00:07]} Bxd5 {[%emt 0:00:43]} 26. exd5 {[%emt 0:00:33]} g5 {[%emt 0:00:45]} 27. g3 {[%emt 0:03:19]} fxg3+ {[%emt 0:00:17]} 28. Kxg3 {[%emt 0:00:12]} Kg7 {[%emt 0:00:35]} 29. Kg4 {[%emt 0:01:33]} h6 {[%emt 0:02:25]} 30. Rf5 {[%emt 0:03:18]} Rde8 {[%emt 0:01:12]} 31. Rf2 {[%emt 0:03:30]} Re3 {[%emt 0:02:33]} 32. Rf3 {[%emt 0:05:27]} h5+ {[%emt 0:02:39]} 33. Kg3 {[%emt 0:00:27]} h4+ {[%emt 0:00:30]} 34. Kf2 {[%emt 0:00:54]} Rxf3+ {[%emt 0:00:10]} 35. Kxf3 {[%emt 0:00:01]} f5 {[%emt 0:00:21]} 36. Re1 {[%emt 0:01:30]} Kf6 {[%emt 0:00:50]} 37. Rg1 {[%emt 0:01:54]} Rb8 {[%emt 0:01:21]} 38. Ra1 {[%emt 0:01:16]} Ke5 {[%emt 0:03:07]} 39. Ke3 {[%emt 0:01:11]} f4+ {[%emt 0:01:23]} 40. Kf3 {[%emt 0:00:02]} Kd4 {[%emt 0:00:18]} 41. Ra3 {[%emt 0:00:51]} Re8 {[%emt 0:03:42]} 42. Kg4 {[%emt 0:02:43]} Re5 {[%emt 0:01:45]} 43. Bf1 {[%emt 0:02:16]} Re3 {[%emt 0:01:00]} 44. Bd3 {[%emt 0:00:01]} Rg3+ {[%emt 0:01:08]} 45. Kf5 {[%emt 0:00:21]} f3 {[%emt 0:00:40]} 46. Ra1 {[%emt 0:00:08]} f2 {[%emt 0:01:46]} 47. Bf1 {[%emt 0:00:45]} Re3 {[%emt 0:01:19]} 48. Rc1 Re1 49. c3+ 0-1

[Event "Galicia-ch U18 2021"]
[Site "Padron"]
[Date "2021.04.03"]
[Round "6.4"]
[White "Martinez Montes, Juan Manuel"]
[Black "Bringas Gomez, Artai"]
[Result "1/2-1/2"]
[ECO "B02"]
[WhiteElo "1873"]
[BlackElo "2120"]
[Annotator "ChessBase"]
[PlyCount "42"]
[EventDate "2021.04.02"]
[EventType "swiss"]
[EventCountry "ESP"]
[SourceTitle "playchess.com"]
[Source "ChessBase"]
[SourceQuality "1"]
[TimeControl "5400+30"]

1. e4 {[%emt 0:00:25]} Nf6 {[%emt 0:01:45]} 2. Nc3 {[%emt 0:00:09]} d6 {[%emt 0:00:09]} 3. d4 {[%emt 0:00:15]} e5 {[%emt 0:00:09]} 4. Nge2 {[%emt 0:00:42]} Nbd7 {[%emt 0:00:06]} 5. f3 {[%emt 0:01:11]} Be7 {[%emt 0:00:09]} 6. Be3 {[%emt 0:00:18]} c6 {[%emt 0:00:09]} 7. Qd2 {[%emt 0:01:13]} O-O {[%emt 0:00:16]} 8. g4 {[%emt 0:01:20]} Qa5 {[%emt 0:04:11]} 9. h4 {[%emt 0:06:47]} b5 {[%emt 0:02:08]} 10. Ng3 {[%emt 0:01:04]} exd4 {[%emt 0:00:57]} 11. Bxd4 {[%emt 0:00:29]} Ne5 {[%emt 0:00:05]} 12. Bxe5 {[%emt 0:02:03]} dxe5 {[%emt 0:00:12]} 13. g5 {[%emt 0:01:57]} Nd7 {[%emt 0:05:41]} 14. Nf5 {[%emt 0:05:52]} Bb4 {[%emt 0:01:12]} 15. a3 {[%emt 0:00:35]} Nc5 {[%emt 0:01:46]} 16. Ne7+ {[%emt 0:00:35]} Kh8 {[%emt 0:00:05]} 17. Nxc6 {[%emt 0:00:19]} Bxc3 {[%emt 0:00:10]} 18. Qxc3 {[%emt 0:00:45]} Qxc3+ {[%emt 0:02:01]} 19. bxc3 {[%emt 0:00:10]} Re8 {[%emt 0:03:29]} 20. Nb4 {[%emt 0:02:07]} Bd7 {[%emt 0:00:25]} 21. c4 {[%emt 0:00:54]} a6 {[%emt 0:00:33]} 1/2-1/2

[Event "Galicia-ch U18 2021"]
[Site "Padron"]
[Date "2021.04.03"]
[Round "6.5"]
[White "Alvarez Pampillon, Antonio"]
[Black "Rey Figueira, Brais"]
[Result "1-0"]
[ECO "D00"]
[WhiteElo "1860"]
[BlackElo "1362"]
[Annotator "NA"]
[PlyCount "91"]
[EventDate "2021.04.02"]
[EventType "swiss"]
[EventCountry "ESP"]
[SourceTitle "playchess.com"]
[Source "ChessBase"]
[SourceQuality "1"]
[TimeControl "5400+30"]

1. d4 {[%emt 0:00:00]} d5 {[%emt 0:16:15]} 2. g3 {[%emt 0:00:00]} e6 {[%emt 0:01:11]} 3. Bg2 {[%emt 0:00:00]} c5 {[%emt 0:03:20]} 4. Nf3 {[%emt 0:00:25]} Nc6 {[%emt 0:01:12]} 5. O-O {[%emt 0:00:17]} Qb6 {[%emt 0:00:28]} 6. c4 {[%emt 0:24:07]} Nf6 {[%emt 0:07:02]} 7. cxd5 {[%emt 0:01:57]} Nxd5 {[%emt 0:01:29]} 8. e4 {[%emt 0:00:37]} Nf6 {[%emt 0:00:48]} 9. d5 {[%emt 0:00:23]} Na5 {[%emt 0:10:03]} 10. Bd2 {[%emt 0:09:50]} Bd7 {[%emt 0:09:00]} 11. Ne5 {[%emt 0:25:04]} Bb5 {[%emt 0:14:59]} 12. Na3 {[%emt 0:03:40]} Be7 {[%emt 0:07:36]} 13. Nxb5 {[%emt 0:25:54]} Qxb5 {[%emt 0:00:51]} 14. Bxa5 {[%emt 0:00:22]} Qxa5 {[%emt 0:00:20]} 15. dxe6 {[%emt 0:00:02]} fxe6 {[%emt 0:00:56]} 16. Qb3 {[%emt 0:04:15]} Qa6 {[%emt 0:03:08]} 17. Nc4 {[%emt 0:00:52]} Rd8 {[%emt 0:02:07]} 18. Rad1 {[%emt 0:00:28]} O-O {[%emt 0:01:14]} 19. Ne3 {[%emt 0:00:25]} Kh8 {[%emt 0:01:15]} 20. e5 {[%emt 0:00:33]} Nd7 {[%emt 0:02:31]} 21. Bxb7 {[%emt 0:00:04]} Qb6 {[%emt 0:10:04]} 22. Qxb6 {[%emt 0:00:05]} Nxb6 {[%emt 0:00:10]} 23. b3 {[%emt 0:01:32]} Rb8 {[%emt 0:01:40]} 24. Be4 {[%emt 0:00:15]} Rfc8 {[%emt 0:02:25]} 25. Bd3 {[%emt 0:00:11]} Rd8 {[%emt 0:01:36]} 26. Bc4 {[%emt 0:00:08]} Nxc4 {[%emt 0:00:31]} 27. Nxc4 {[%emt 0:00:01]} Rd4 {[%emt 0:00:47]} 28. Rd2 {[%emt 0:01:48]} Rbd8 {[%emt 0:00:24]} 29. Rfd1 {[%emt 0:00:01]} Kg8 {[%emt 0:00:35]} 30. Kg2 {[%emt 0:00:44]} Kf7 {[%emt 0:00:28]} 31. Kf3 {[%emt 0:00:35]} Kg6 {[%emt 0:00:34]} 32. Rxd4 {[%emt 0:00:32]} cxd4 {[%emt 0:00:29]} 33. Ke4 {[%emt 0:00:01]} Bc5 {[%emt 0:00:22]} 34. f4 {[%emt 0:00:49]} Rd5 {[%emt 0:00:38]} 35. f5+ {[%emt 0:00:33]} Kf7 {[%emt 0:00:16]} 36. g4 {[%emt 0:00:39]} Rd8 {[%emt 0:00:44]} 37. Na5 {[%emt 0:00:40]} Rd7 {[%emt 0:00:31]} 38. Nc6 {[%emt 0:00:23]} Bb6 {[%emt 0:00:30]} 39. Nxd4 {[%emt 0:00:13]} exf5+ {[%emt 0:00:29]} 40. gxf5 {[%emt 0:00:03]} Ke7 {[%emt 0:00:31]} 41. Nc6+ {[%emt 0:00:03]} Ke8 {[%emt 0:00:26]} 42. Rxd7 {[%emt 0:00:01]} Kxd7 {[%emt 0:00:01]} 43. Nb4 {[%emt 0:00:13]} Bg1 {[%emt 0:01:02]} 44. h3 {[%emt 0:00:15]} Bh2 {[%emt 0:00:30]} 45. Kd5 {[%emt 0:00:11]} Bg3 {[%emt 0:00:31]} 46. Nc6 {[%emt 0:00:22]} 1-0

[Event "Galicia-ch U18 2021"]
[Site "Padron"]
[Date "2021.04.03"]
[Round "6.6"]
[White "Diaz Gomez, Mateo"]
[Black "Rey Chimera, Luca"]
[Result "1-0"]
[ECO "C06"]
[WhiteElo "1776"]
[BlackElo "1639"]
[Annotator "NA"]
[PlyCount "57"]
[EventDate "2021.04.02"]
[EventType "swiss"]
[EventCountry "ESP"]
[SourceTitle "playchess.com"]
[Source "ChessBase"]
[SourceQuality "1"]
[TimeControl "5400+30"]

1. e4 {[%emt 0:00:00]} e6 {[%emt 0:00:00]} 2. d4 {[%emt 0:00:00]} d5 {[%emt 0:00:00]} 3. Nd2 {[%emt 0:00:00]} Nf6 {[%emt 0:00:09]} 4. e5 {[%emt 0:00:00]} Nfd7 {[%emt 0:00:06]} 5. Bd3 {[%emt 0:00:00]} c5 {[%emt 0:00:16]} 6. c3 {[%emt 0:00:24]} Nc6 {[%emt 0:00:16]} 7. Ne2 {[%emt 0:00:11]} cxd4 {[%emt 0:04:30]} 8. cxd4 {[%emt 0:00:23]} Qb6 {[%emt 0:10:15]} 9. Nf3 {[%emt 0:01:21]} f6 {[%emt 0:02:14]} 10. exf6 {[%emt 0:00:49]} Nxf6 {[%emt 0:00:19]} 11. O-O {[%emt 0:00:54]} Bd6 {[%emt 0:02:42]} 12. Bf4 {[%emt 0:01:00]} Bxf4 {[%emt 0:00:33]} 13. Nxf4 {[%emt 0:00:21]} O-O {[%emt 0:00:34]} 14. Qd2 {[%emt 0:00:29]} Ne4 {[%emt 0:05:23]} 15. Qe3 {[%emt 0:06:13]} g5 {[%emt 0:06:53]} 16. Nh5 {[%emt 0:03:24]} g4 {[%emt 0:02:31]} 17. Bxe4 {[%emt 0:02:54]} Qd8 {[%emt 0:07:41]} 18. Qh6 {[%emt 0:24:03]} Qe7 {[%emt 0:00:50]} 19. Rfe1 {[%emt 0:03:56]} gxf3 {[%emt 0:03:33]} 20. Bxd5 {[%emt 0:05:29]} Nxd4 {[%emt 0:02:08]} 21. Re4 {[%emt 0:16:21]} Nf5 {[%emt 0:00:32]} 22. Bxe6+ {[%emt 0:08:21]} Bxe6 {[%emt 0:00:16]} 23. Rxe6 {[%emt 0:00:23]} Nxh6 {[%emt 0:06:43]} 24. Rxe7 {[%emt 0:00:03]} Rac8 {[%emt 0:05:53]} 25. Rxb7 {[%emt 0:02:27]} Rc2 {[%emt 0:00:49]} 26. gxf3 {[%emt 0:02:19]} Rxf3 {[%emt 0:01:06]} 27. Rd1 {[%emt 0:01:12]} Nf7 {[%emt 0:02:54]} 28. Rb8+ {[%emt 0:00:27]} Nd8 {[%emt 0:00:52]} 29. Rdxd8+ {[%emt 0:00:35]} 1-0

[Event "Galicia-ch U18 2021"]
[Site "Padron"]
[Date "2021.04.04"]
[Round "7.4"]
[White "Diaz Gomez, Mateo"]
[Black "Martinez Montes, Juan Manuel"]
[Result "1/2-1/2"]
[ECO "B23"]
[WhiteElo "1776"]
[BlackElo "1873"]
[Annotator "NA RC"]
[PlyCount "85"]
[EventDate "2021.04.02"]
[EventType "swiss"]
[EventCountry "ESP"]
[SourceTitle "playchess.com"]
[Source "ChessBase"]
[SourceQuality "1"]
[TimeControl "5400+30"]

1. e4 {[%emt 0:00:00]} c5 {[%emt 0:00:00]} 2. Nc3 {[%emt 0:00:00]} d6 {[%emt 0:00:00]} 3. d4 {[%emt 0:00:01]} cxd4 {[%emt 0:00:00]} 4. Qxd4 {[%emt 0:00:03]} Nc6 {[%emt 0:00:42]} 5. Qd2 $11 {[%emt 0:00:09]} Nf6 {[%emt 0:00:40]} 6. b3 {[%emt 0:00:38]} g6 {[%emt 0:00:19]} 7. Bb2 {[%emt 0:01:06]} Bg7 {[%emt 0:00:11]} 8. O-O-O {[%emt 0:00:18]} a6 {[%emt 0:01:27]} 9. f3 {[%emt 0:01:19]} O-O {[%emt 0:00:43]} 10. Kb1 {[%emt 0:01:51]} b5 {[%emt 0:03:17]} 11. g4 {[%emt 0:02:56]} Be6 {[%emt 0:07:16]} 12. g5 {[%emt 0:09:03]} Nd7 {[%emt 0:00:52]} 13. h4 {[%emt 0:06:08]} Qa5 {[%emt 0:08:26]} 14. h5 {[%emt 0:11:40]} Rfc8 {[%emt 0:00:45]} 15. Nd5 {[%emt 0:07:15]} Qxd2 {[%emt 0:03:06]} 16. Rxd2 {[%emt 0:00:04]} gxh5 {[%emt 0:07:32]} 17. Bxg7 {[%emt 0:02:51]} Kxg7 {[%emt 0:00:17]} 18. Rxh5 {[%emt 0:01:22]} Bxd5 {[%emt 0:01:02]} 19. exd5 {[%emt 0:01:22]} Nce5 {[%emt 0:01:18]} 20. Rdh2 {[%emt 0:05:15]} Nf8 {[%emt 0:01:14]} 21. f4 {[%emt 0:01:20]} Neg6 {[%emt 0:00:18]} 22. Ne2 {[%emt 0:00:46]} Rc5 {[%emt 0:01:51]} 23. Bg2 {[%emt 0:01:06]} Rac8 {[%emt 0:01:08]} 24. Be4 {[%emt 0:05:38]} e6 {[%emt 0:03:22]} 25. dxe6 {[%emt 0:03:21]} fxe6 {[%emt 0:03:55]} 26. R5h3 {[%emt 0:09:15]} R8c7 {[%emt 0:02:00]} 27. Bxg6 {[%emt 0:07:27]} hxg6 {[%emt 0:00:20]} 28. Nc1 {[%emt 0:02:34]} Rf5 {[%emt 0:00:43]} 29. Nd3 {[%emt 0:00:11]} e5 {[%emt 0:00:14]} 30. fxe5 {[%emt 0:03:32]} dxe5 {[%emt 0:00:23]} 31. Re3 {[%emt 0:02:15]} Rxg5 {[%emt 0:03:14]} 32. Nxe5 {[%emt 0:01:55]} Re7 {[%emt 0:01:03]} 33. Rhe2 {[%emt 0:00:11]} Rf5 {[%emt 0:00:53]} 34. c4 {[%emt 0:00:54]} bxc4 {[%emt 0:00:44]} 35. bxc4 {[%emt 0:00:50]} g5 {[%emt 0:02:44]} 36. c5 {[%emt 0:00:47]} Ng6 {[%emt 0:00:23]} 37. Nxg6 Rxe3 38. Rxe3 {[%emt 0:02:00]} Kxg6 {[%emt 0:00:34]} 39. Rc3 {[%emt 0:01:22]} Rf7 {[%emt 0:00:06]} 40. c6 {[%emt 0:00:29]} Rc7 {[%emt 0:00:06]} 41. Kc2 {[%emt 0:00:29]} Kf5 {[%emt 0:00:39]} 42. Kd3 {[%emt 0:00:39]} Ke5 {[%emt 0:01:23]} 43. Rc5+ {[%emt 0:05:03]} 1/2-1/2